fUST/lending_fUST_20260129
["ID","MTS","AMOUNT","RATE_DAILY","PERIOD"]
[403904426,1769651433341,-502.30105745,0.00014368,2]
[403904427,1769651433350,-455.02550154,0.00014368,2]
[403904428,1769651433360,-151.0,0.000146,2]
[403904429,1769651433369,-151.0,0.000146,2]
[403904430,1769651433379,-151.0,0.000146,2]
[403904431,1769651433400,-151.0,0.000146,2]
[403904432,1769651433419,-151.0,0.000146,2]
[403904433,1769651433440,-151.0,0.000146,2]
[403904434,1769651433460,-151.0,0.000146,2]
[403904435,1769651433481,-151.0,0.000146,2]
[403904436,1769651433502,-347.09254357,0.00014847,2]
[403904437,1769651433523,-569.20394296,0.00015098,2]
[403904438,1769651433544,-720.0,0.00015187,2]
[403904439,1769651433563,-40856.47751031,0.000154,2]
[403904440,1769651433584,-599.7704835,0.000154,2]
[403904480,1769651438679,-928.5,0.00013621,2]
[403904482,1769651438691,-1199.11061802,0.00013621,2]
[403904484,1769651438700,-8205.77268141,0.000154,2]
[403904488,1769651438731,-1228.0,0.000154,2]
[403904490,1769651438743,-3734.68883386,0.000154,2]
[403904605,1769651440780,-1387.06927144,0.000154,2]
[403904606,1769651440792,-5986.14370437,0.000154,2]
[403904607,1769651440802,-79259.53075908,0.000154,2]
[403904608,1769651440847,-67.08144,0.000154,2]
[403904609,1769651440858,-81593.60216542,0.000154,2]
[403904633,1769651445258,-501.50832084,0.000154,2]
[403904634,1769651445272,-186731.30568448,0.000154,2]
[403904635,1769651445281,-4935.71281961,0.0001544,2]
[403904636,1769651445291,-717.32386746,0.0001544,2]
[403904637,1769651445300,-2869.29546984,0.0001544,2]
[403904638,1769651445309,-6449.45889234,0.0001544,2]
[403904639,1769651445318,-278.21613145,0.0001554,2]
[403904640,1769651445328,-1112.86452581,0.0001554,2]
[403904641,1769651445337,-2503.94518308,0.0001554,2]
[403904642,1769651445346,-4451.45810326,0.0001554,2]
[403904643,1769651445356,-6955.40328634,0.0001554,2]
[403904644,1769651445365,-222.04123498,0.0001554,2]
[403904645,1769651445375,-888.16493991,0.0001554,2]
[403904646,1769651445384,-1998.37111479,0.0001554,2]
[403904647,1769651445393,-3552.65975964,0.0001554,2]
[403904648,1769651445403,-5551.03087443,0.0001554,2]
[403904649,1769651445412,-1600.30514579,0.0001554,2]
[403904651,1769651445423,-6393.17931339,0.0001554,2]
[403904652,1769651445432,-10880.02051388,0.0001554,2]
[403904653,1769651445441,-5000.0,0.0001564,2]
[403904654,1769651445450,-569.20394296,0.00015836,2]
[403904655,1769651445459,-160.0,0.000159,2]
[403904656,1769651445468,-160.0,0.000159,2]
[403904657,1769651445477,-2127.61061802,0.00016041,2]
[403904658,1769651445487,-1925.65109133,0.00016044,2]
[403904659,1769651445496,-1754.27263038,0.0001611,2]
[403904660,1769651445505,-3000.0,0.0001612,2]
[403904661,1769651445514,-5473.3181,0.0001613,2]
[403904662,1769651445523,-1041.66666667,0.00016346,2]
[403904663,1769651445533,-160.0,0.00016346,2]
[403904664,1769651445542,-200.0,0.00016438,2]
[403904665,1769651445552,-539.21058178,0.00016438,2]
[403904666,1769651445561,-569.20394296,0.00016574,2]
[403904667,1769651445570,-2068.75776269,0.00016674,2]
[403904668,1769651445579,-151.0,0.00016674,2]
[403904669,1769651445590,-181.49849526,0.00016674,2]
[403904670,1769651445600,-1000.0,0.00016674,2]
[403904671,1769651445610,-1957.856,0.00016674,2]
[403904672,1769651445619,-151.0,0.00016674,2]
[403904673,1769651445629,-215.70202434,0.00016674,2]
[403904674,1769651445640,-280.7692473,0.00016674,2]
[403904675,1769651445649,-640.2307527,0.00016674,2]
[403904676,1769651445660,-359.7692473,0.00016674,2]
[403904677,1769651445670,-151.0,0.00016674,2]
[403904678,1769651445679,-1000.0,0.00016674,2]
[403904679,1769651445688,-151.0,0.00016674,2]
[403904680,1769651445697,-1000.0,0.00016674,2]
[403904681,1769651445706,-151.0,0.00016674,2]
[403904682,1769651445715,-250.0,0.00016674,2]
[403904683,1769651445725,-1000.0,0.00016674,2]
[403904684,1769651445734,-180.86986638,0.00016674,2]
[403904685,1769651445743,-254.00718622,0.00016674,2]
[403904686,1769651445751,-1000.0,0.00016674,2]
[403904687,1769651445760,-1000.0,0.00016674,2]
[403904688,1769651445770,-1000.0,0.00016674,2]
[403904689,1769651445780,-1000.0,0.00016674,2]
[403904690,1769651445790,-1000.0,0.00016674,2]
[403904691,1769651445800,-1000.0,0.00016674,2]
[403904692,1769651445809,-1000.0,0.00016674,2]
[403904693,1769651445818,-300.37442807,0.00016674,2]
[403904694,1769651445826,-501.8916147,0.00016674,2]
[403904695,1769651445835,-151.0,0.00016674,2]
[403904696,1769651445845,-323.39571937,0.00016674,2]
[403904697,1769651445854,-181.08010149,0.00016674,2]
[403904698,1769651445863,-187.78006525,0.00016674,2]
[403904699,1769651445872,-194.72792766,0.00016674,2]
[403904700,1769651445881,-201.93286099,0.00016674,2]
[403904701,1769651445891,-599.60298507,0.00016674,2]
[403904702,1769651445900,-209.40437684,0.00016674,2]
[403904703,1769651445909,-217.15233878,0.00016674,2]
[403904704,1769651445918,-225.18697532,0.00016674,2]
[403904705,1769651445926,-2315.71832658,0.00016674,2]
[403904706,1769651445939,-233.51889341,0.00016674,2]
[403904707,1769651445948,-242.15909246,0.00016674,2]
[403904709,1769651445957,-251.11897888,0.00016674,2]
[403904711,1769651445966,-260.4103811,0.00016674,2]
[403904712,1769651445979,-270.0455652,0.00016674,2]
[403904713,1769651445988,-280.03725112,0.00016674,2]
[403904714,1769651445998,-290.39862941,0.00016674,2]
[403904715,1769651446010,-301.1433787,0.00016674,2]
[403904716,1769651446019,-864.0,0.00016706,2]
[403904717,1769651446028,-2030.296672,0.00016729,2]
[403904718,1769651446039,-648.76394393,0.00016784,2]
[403904724,1769651446590,-1456.65370493,0.00016784,2]
[403904725,1769651446600,-1923.9019213,0.00016839,2]
[403904726,1769651446697,-259.41618057,0.00016839,2]
[403904727,1769651446706,-400.03886378,0.00016847,2]
[403904728,1769651446716,-2264.10087164,0.00016894,2]
[403904729,1769651446726,-190.93050519,0.00016949,2]
[403904737,1769651505361,1006.35,0.0003,120]
[403904738,1769651569774,610.0,0.00030137,120]
[403904752,1769651804149,1000.0,0.0003,120]
[403904758,1769651938485,3494.0,0.00030137,120]
[403904759,1769652015801,503.46,0.00030137,120]
[403904778,1769652623281,1010.19,0.00030137,120]
[403904781,1769652632531,-3424.64022125,0.00011174,2]
[403904782,1769652632540,-2494.55529493,0.00011287,2]
[403904783,1769652632550,-5000.0,0.00011401,2]
[403904784,1769652632559,-580.0,0.00011401,2]
[403904785,1769652632568,-283.94067075,0.00011459,2]
[403904786,1769652632578,-1062.0,0.00011515,2]
[403904787,1769652632587,-158.734,0.00013256,2]
[403904788,1769652632596,-500.0,0.00013309,2]
[403904789,1769652632606,-150.34496793,0.00013309,2]
[403904791,1769652632615,-151.34391768,0.00013425,2]
[403904793,1769652632626,-1540.5208731,0.00013426,2]
[403904795,1769652632635,-500.0,0.00013446,2]
[403904797,1769652632644,-153.79846761,0.00013446,2]
[403904799,1769652632654,-335.04999149,0.00013459,2]
[403904801,1769652632663,-407.31344066,0.00013523,2]
[403904802,1769652632672,-500.0,0.00013523,2]
[403904803,1769652632682,-503.97871067,0.00013523,2]
[403904804,1769652632691,-500.0,0.00013523,2]
[403904805,1769652632701,-500.0,0.00013523,2]
[403904806,1769652632710,-501.18191152,0.00013523,2]
[403904807,1769652632719,-500.0,0.00013523,2]
[403904808,1769652632728,-435.23835168,0.00013523,2]
[403904809,1769652632738,-500.0,0.00013523,2]
[403904810,1769652632747,-500.0,0.00013523,2]
[403904811,1769652632756,-500.0,0.00013523,2]
[403904812,1769652632766,-500.0,0.00013523,2]
[403904813,1769652632776,-415.97957565,0.00013523,2]
[403904814,1769652632785,-167.99240846,0.00013523,2]
[403904815,1769652632795,-487.0,0.00013526,2]
[403904816,1769652632804,-487.0,0.00013526,2]
[403904817,1769652632813,-487.0,0.00013526,2]
[403904818,1769652632823,-487.0,0.00013526,2]
[403904819,1769652632832,-487.0,0.00013526,2]
[403904820,1769652632841,-487.0,0.00013526,2]
[403904821,1769652632851,-487.0,0.00013526,2]
[403904822,1769652632860,-487.0,0.00013526,2]
[403904823,1769652632870,-487.0,0.00013526,2]
[403904824,1769652632879,-487.0,0.00013526,2]
[403904825,1769652632889,-487.0,0.00013526,2]
[403904826,1769652632903,-487.0,0.00013526,2]
[403904827,1769652632914,-487.0,0.00013526,2]
[403904828,1769652632923,-487.0,0.00013526,2]
[403904829,1769652632934,-487.0,0.00013526,2]
[403904830,1769652632943,-487.0,0.00013526,2]
[403904831,1769652632953,-487.0,0.00013526,2]
[403904832,1769652632963,-487.0,0.00013526,2]
[403904833,1769652632972,-487.0,0.00013526,2]
[403904834,1769652632982,-487.0,0.00013526,2]
[403904835,1769652632991,-487.0,0.00013526,2]
[403904836,1769652633001,-487.0,0.00013526,2]
[403904837,1769652633010,-893.62,0.00013526,2]
[403904838,1769652633019,-198.74204563,0.00013562,2]
[403904839,1769652633029,-500.0,0.00013583,2]
[403904840,1769652633038,-150.41204017,0.00013583,2]
[403904841,1769652633047,-153.57175431,0.00013583,2]
[403904842,1769652633056,-500.0,0.00013698,2]
[403904843,1769652633065,-500.0,0.00013698,2]
[403904844,1769652633074,-218.51768925,0.00013698,2]
[403904845,1769652633083,-500.0,0.00013698,2]
[403904846,1769652633092,-500.0,0.00013698,2]
[403904847,1769652633101,-500.0,0.00013698,2]
[403904848,1769652633111,-500.0,0.00013698,2]
[403904849,1769652633120,-500.0,0.00013698,2]
[403904850,1769652633129,-500.0,0.00013698,2]
[403904851,1769652633138,-500.0,0.00013698,2]
[403904852,1769652633147,-283.91506356,0.00013698,2]
[403904853,1769652633156,-154.25200993,0.00013698,2]
[403904854,1769652633165,-1065.24392449,0.00013698,2]
[403904855,1769652633175,-1000.0,0.00013699,2]
[403904856,1769652633184,-500.46104075,0.00013699,2]
[403904857,1769652633193,-501.95953675,0.00013699,2]
[403904858,1769652633202,-181.73831424,0.00013699,2]
[403904859,1769652633211,-500.0,0.00013699,2]
[403904860,1769652633221,-505.17481241,0.00013699,2]
[403904862,1769652633230,-501.50103789,0.00013699,2]
[403904864,1769652633239,-501.95307623,0.00013699,2]
[403904866,1769652633248,-158.24759628,0.00013699,2]
[403904867,1769652633257,-300.17039316,0.00013699,2]
[403904868,1769652633266,-288.28300754,0.00013699,2]
[403904870,1769652633275,-500.45553756,0.00013699,2]
[403904872,1769652633285,-501.77599634,0.00013699,2]
[403904874,1769652633295,-501.38528422,0.00013699,2]
[403904876,1769652633306,-505.52006216,0.00013699,2]
[403904878,1769652633318,-500.0,0.00013699,2]
[403904881,1769652633329,-501.56881822,0.00013699,2]
[403904883,1769652633338,-155.8542674,0.00013699,2]
[403904885,1769652633349,-500.0,0.0001372,2]
[403904887,1769652633358,-500.0,0.0001372,2]
[403904889,1769652633367,-532.7212066,0.0001372,2]
[403904891,1769652633377,-500.0,0.0001372,2]
[403904893,1769652633388,-500.0,0.0001372,2]
[403904895,1769652633397,-500.0,0.0001372,2]
[403904897,1769652633406,-500.0,0.0001372,2]
[403904899,1769652633415,-500.0,0.0001372,2]
[403904900,1769652633424,-500.0,0.0001372,2]
[403904901,1769652633433,-500.0,0.0001372,2]
[403904903,1769652633443,-500.0,0.0001372,2]
[403904904,1769652633452,-500.0,0.0001372,2]
[403904905,1769652633461,-500.0,0.0001372,2]
[403904906,1769652633470,-500.0,0.0001372,2]
[403904907,1769652633479,-500.0,0.0001372,2]
[403904908,1769652633489,-500.0,0.0001372,2]
[403904909,1769652633498,-512.49211908,0.0001372,2]
[403904910,1769652633507,-300.0,0.00013796,2]
[403904911,1769652633516,-300.0,0.00013796,2]
[403904912,1769652633525,-300.0,0.00013796,2]
[403904913,1769652633535,-300.0,0.00013796,2]
[403904914,1769652633544,-300.0,0.00013796,2]
[403904915,1769652633553,-300.0,0.00013796,2]
[403904916,1769652633562,-300.0,0.00013796,2]
[403904917,1769652633572,-300.0,0.00013796,2]
[403904918,1769652633581,-300.0,0.00013796,2]
[403904919,1769652633591,-300.0,0.00013796,2]
[403904920,1769652633600,-300.0,0.00013796,2]
[403904921,1769652633609,-300.0,0.00013796,2]
[403904922,1769652633618,-300.0,0.00013796,2]
[403904923,1769652633628,-300.0,0.00013796,2]
[403904924,1769652633637,-300.0,0.00013796,2]
[403904925,1769652633647,-600.0,0.00013796,2]
[403904926,1769652633656,-500.0,0.00013857,2]
[403904927,1769652633665,-264.12060397,0.00013857,2]
[403904928,1769652633674,-150.47960374,0.00013857,2]
[403904929,1769652633683,-151.17525546,0.00013933,2]
[403904930,1769652633693,-152.05652265,0.00013933,2]
[403904931,1769652633702,-500.0,0.00013994,2]
[403904932,1769652633711,-577.19494943,0.00014025,2]
[403904933,1769652633720,-2308.77979771,0.00014025,2]
[403904934,1769652633730,-5189.55979031,0.00014025,2]
[403904935,1769652633740,-322.7772881,0.00014025,2]
[403904936,1769652633749,-500.0,0.00014131,2]
[403904937,1769652633759,-392.89396211,0.00014172,2]
[403904938,1769652633768,-1570.00427261,0.00014172,2]
[403904939,1769652633778,-363.28018109,0.00014172,2]
[403904940,1769652633788,-1000.0,0.00014247,2]
[403904941,1769652633797,-191.47421092,0.00014268,2]
[403904942,1769652633807,-178.92208645,0.00014353,2]
[403904943,1769652633816,-157.43607312,0.00014353,2]
[403904944,1769652633825,-1500.0,0.00014795,2]
[403904945,1769652633834,-394.435927,0.00015068,2]
[403904946,1769652633844,-720.0,0.00015175,2]
[403904947,1769652633853,-2000.0,0.00015342,2]
[403904948,1769652633862,-2000.0,0.00015342,2]
[403904949,1769652633872,-475.0,0.00015342,2]
[403904950,1769652633881,-475.0,0.00015342,2]
[403904951,1769652633891,-2000.0,0.00015342,2]
[403904952,1769652633900,-386.15931222,0.00015459,2]
[403904953,1769652633910,-181.22169044,0.00015621,2]
[403904954,1769652633919,-1540.52087306,0.00015781,2]
[403904955,1769652633929,-150.22958995,0.00015786,2]
[403904956,1769652633938,-1000.0,0.000158,2]
[403904957,1769652633948,-2500.0,0.0001589,2]
[403904958,1769652633958,-1414.629399,0.00016,2]
[403904959,1769652633968,-151.0,0.00016101,2]
[403904960,1769652633977,-323.39571937,0.00016101,2]
[403904961,1769652633988,-1470.67108572,0.00016101,2]
[403904962,1769652633997,-496.47127164,0.00016101,2]
[403904963,1769652634007,-599.60298507,0.00016101,2]
[403904964,1769652634016,-181.08010149,0.00016101,2]
[403904965,1769652634025,-2193.47775937,0.00016101,2]
[403904966,1769652634035,-187.78006525,0.00016101,2]
[403904967,1769652634044,-194.72792766,0.00016101,2]
[403904968,1769652634054,-201.93286099,0.00016101,2]
[403904969,1769652634063,-209.40437684,0.00016101,2]
[403904970,1769652634073,-217.15233878,0.00016101,2]
[403904971,1769652634082,-225.18697532,0.00016101,2]
[403904972,1769652634091,-233.51889341,0.00016101,2]
[403904973,1769652634100,-242.15909246,0.00016101,2]
[403904974,1769652634109,-251.11897888,0.00016101,2]
[403904975,1769652634118,-260.4103811,0.00016101,2]
[403904976,1769652634128,-270.0455652,0.00016101,2]
[403904977,1769652634137,-280.03725112,0.00016101,2]
[403904978,1769652634146,-290.39862941,0.00016101,2]
[403904979,1769652634155,-301.1433787,0.00016101,2]
[403904980,1769652634164,-151.0,0.00016101,2]
[403904981,1769652634173,-151.0,0.00016101,2]
[403904982,1769652634182,-241.876483,0.00016101,2]
[403904983,1769652634191,-241.876483,0.00016101,2]
[403904984,1769652634200,-241.876483,0.00016101,2]
[403904985,1769652634209,-241.876483,0.00016101,2]
[403904986,1769652634218,-479.227463,0.00016101,2]
[403904987,1769652634228,-479.227463,0.00016101,2]
[403904988,1769652634237,-479.227463,0.00016101,2]
[403904989,1769652634247,-479.227463,0.00016101,2]
[403904990,1769652634256,-378.0985263,0.00016192,2]
[403904991,1769652634265,-249.71005468,0.00016329,3]
[403904992,1769652634274,-1041.66666667,0.00016345,2]
[403904993,1769652634284,-160.0,0.00016345,2]
[403904994,1769652634293,-377.44740724,0.00016438,2]
[403904995,1769652634302,-200.0,0.00016438,2]
[403904996,1769652634315,-255.417628,0.00016438,2]
[403904997,1769652634324,-255.417628,0.00016438,2]
[403904998,1769652634333,-255.417628,0.00016438,2]
[403904999,1769652634342,-196.00049188,0.00016438,2]
[403905000,1769652634592,-59.41713612,0.00016438,2]
[403905001,1769652634601,-151.0,0.00016438,2]
[403905002,1769652634609,-151.0,0.00016438,2]
[403905003,1769652634619,-151.0,0.00016438,2]
[403905004,1769652634628,-151.0,0.00016438,2]
[403905005,1769652634638,-150.15696741,0.00016438,2]
[403905006,1769652634647,-3000.0,0.00016438,2]
[403905007,1769652634656,-262.35018949,0.00016649,2]
[403905008,1769652634665,-157.93224596,0.00016649,2]
[403905009,1769652634675,-514.84070869,0.00016649,2]
[403905010,1769652634684,-621.78829552,0.00016649,2]
[403905011,1769652634695,-864.0,0.00016693,2]
[403905012,1769652634705,-348.0,0.00016949,2]
[403905013,1769652634715,-167.90657701,0.00016949,2]
[403905014,1769652634724,-1225.49381677,0.00016986,2]
[403905015,1769652634734,-19257.14969804,0.00017,2]
[403905016,1769652634743,-151.0,0.00017,2]
[403905017,1769652634752,-151.0,0.00017,2]
[403905018,1769652634761,-218.061475,0.00017,2]
[403905019,1769652634770,-502.824436,0.00017,2]
[403905020,1769652634780,-502.824436,0.00017,2]
[403905021,1769652634790,-502.824436,0.00017,2]
[403905022,1769652634799,-502.824436,0.00017,2]
[403905023,1769652634808,-151.0,0.00017,2]
[403905024,1769652634818,-277.058583,0.00017,2]
[403905025,1769652634827,-241.876483,0.00017,2]
[403905026,1769652634837,-241.876483,0.00017,2]
[403905027,1769652634846,-241.876483,0.00017,2]
[403905028,1769652634861,-241.876483,0.00017,2]
[403905029,1769652634870,-479.227463,0.00017,2]
[403905030,1769652634879,-479.227463,0.00017,2]
[403905031,1769652634888,-479.227463,0.00017,2]
[403905032,1769652634898,-479.227463,0.00017,2]
[403905033,1769652634907,-533.88981491,0.00017197,2]
[403905034,1769652634916,-376.17394806,0.00017197,2]
[403905035,1769652634926,-218.0,0.00017425,3]
[403905036,1769652634935,-5000.0,0.00017457,2]
[403905037,1769652634945,-437.26863296,0.00017459,2]
[403905038,1769652634954,-255.417628,0.00017548,2]
[403905039,1769652634963,-255.417628,0.00017548,2]
[403905040,1769652634972,-255.417628,0.00017548,2]
[403905041,1769652634982,-255.417628,0.00017548,2]
[403905042,1769652634991,-151.0,0.00017548,2]
[403905043,1769652635001,-151.0,0.00017548,2]
[403905044,1769652635010,-151.0,0.00017548,2]
[403905045,1769652635020,-151.0,0.00017548,2]
[403905046,1769652635030,-553.64373807,0.00017745,2]
[403905047,1769652635039,-293.0,0.00017842,2]
[403905048,1769652635048,-353.0,0.00017992,2]
[403905049,1769652635057,-1196.55360811,0.00018,2]
[403905086,1769652638659,-2737.0872181,0.00017999,2]
[403905092,1769652638714,-2262.9127819,0.00017999,2]
[403905094,1769652638724,-2484.09365578,0.00018,2]
[403905097,1769652638735,-1070.77828519,0.00018,2]
[403905099,1769652638746,-386.51,0.00018,2]
[403905101,1769652638757,-435.0,0.00018,2]
[403905262,1769652643958,-151.0,0.00016648,2]
[403905263,1769652643970,-151.0,0.00017745,2]
[403905264,1769652643979,-490.16709817,0.00018,2]
[403905265,1769652644013,-2742.07171254,0.00018,2]
[403905266,1769652644229,-17761.18142603,0.00018,2]
[403905268,1769652644239,-14249.0254658,0.00018,2]
[403905270,1769652644249,-151.0,0.00018,2]
[403905271,1769652644258,-502.824436,0.00018,2]
[403905272,1769652644268,-502.824436,0.00018,2]
[403905273,1769652644278,-502.824436,0.00018,2]
[403905274,1769652644286,-502.824436,0.00018,2]
[403905275,1769652644295,-255.417628,0.00018,2]
[403905276,1769652644304,-255.417628,0.00018,2]
[403905277,1769652644318,-255.417628,0.00018,2]
[403905278,1769652644332,-255.417628,0.00018,2]
[403905279,1769652644342,-151.0,0.00018,2]
[403905280,1769652644352,-151.0,0.00018,2]
[403905281,1769652644362,-151.0,0.00018,2]
[403905282,1769652644373,-176.642011,0.00018,2]
[403905283,1769652644391,-151.0,0.00018,2]
[403905284,1769652644404,-241.876483,0.00018,2]
[403905285,1769652644416,-241.876483,0.00018,2]
[403905286,1769652644429,-241.876483,0.00018,2]
[403905287,1769652644441,-241.876483,0.00018,2]
[403905288,1769652644453,-479.227463,0.00018,2]
[403905289,1769652644463,-479.227463,0.00018,2]
[403905290,1769652644476,-479.227463,0.00018,2]
[403905291,1769652644488,-479.227463,0.00018,2]
[403905292,1769652644499,-151.0,0.00018,2]
[403905293,1769652644510,-1540.52087306,0.00018135,2]
[403905294,1769652644522,-151.04060416,0.00018163,3]
[403905295,1769652644533,-150.75390644,0.00018163,3]
[403905296,1769652644545,-427.0,0.00018176,2]
[403905297,1769652644555,-574.12855637,0.00018293,2]
[403905298,1769652644567,-150.4025982,0.000183,3]
[403905299,1769652644579,-9548.19578351,0.000183,3]
[403905300,1769652644591,-200.0,0.00018356,2]
[403905301,1769652644603,-1000.0,0.00018362,2]
[403905302,1769652644615,-394.435927,0.00018493,2]
[403905303,1769652644625,-220.0,0.00018521,3]
[403905304,1769652644638,-292.665179,0.00018768,2]
[403905305,1769652644650,-502.824436,0.00018768,2]
[403905306,1769652644660,-502.824436,0.00018768,2]
[403905307,1769652644671,-502.824436,0.00018768,2]
[403905308,1769652644683,-502.824436,0.00018768,2]
[403905309,1769652644696,-595.37131296,0.00018841,2]
[403905310,1769652644708,-479.227463,0.00018881,2]
[403905311,1769652644719,-479.227463,0.00018881,2]
[403905312,1769652644730,-479.227463,0.00018881,2]
[403905313,1769652644741,-479.227463,0.00018881,2]
[403905314,1769652644750,-160.0,0.000189,3]
[403905315,1769652644760,-160.0,0.000189,3]
[403905316,1769652644770,-160.0,0.000189,3]
[403905317,1769652644782,-303.10001603,0.000189,2]
[403905318,1769652644792,-251.95315776,0.00018904,2]
[403905319,1769652644803,-12769.97084875,0.00019,2]
[403905320,1769652644815,-255.417628,0.00019,2]
[403905321,1769652644826,-255.417628,0.00019,2]
[403905322,1769652644838,-255.417628,0.00019,2]
[403905323,1769652644849,-255.417628,0.00019,2]
[403905324,1769652644860,-151.0,0.00019,2]
[403905325,1769652644872,-151.0,0.00019,2]
[403905326,1769652644884,-151.0,0.00019,2]
[403905327,1769652644896,-151.0,0.00019,2]
[403905328,1769652644909,-241.876483,0.00019,2]
[403905329,1769652644921,-241.876483,0.00019,2]
[403905330,1769652644932,-241.876483,0.00019,2]
[403905331,1769652644943,-241.876483,0.00019,2]
[403905332,1769652644954,-151.0,0.00019,2]
[403905333,1769652644964,-303.10001603,0.00019089,2]
[403905334,1769652644976,-502.824436,0.00019178,2]
[403905335,1769652644987,-502.824436,0.00019178,2]
[403905336,1769652644998,-502.824436,0.00019178,2]
[403905337,1769652645011,-502.824436,0.00019178,2]
[403905338,1769652645023,-500.0,0.00019178,2]
[403905339,1769652645035,-1270.376,0.00019178,2]
[403905340,1769652645045,-1270.376,0.00019178,2]
[403905341,1769652645055,-846.9173,0.00019178,2]
[403905342,1769652645066,-767.04,0.00019178,2]
[403905343,1769652645076,-846.9173,0.00019178,2]
[403905344,1769652645089,-846.9173,0.00019178,2]
[403905345,1769652645101,-846.9173,0.00019178,2]
[403905346,1769652645112,-846.9173,0.00019178,2]
[403905347,1769652645123,-707.79,0.00019178,2]
[403905348,1769652645134,-1270.376,0.00019178,2]
[403905349,1769652645144,-1016.3,0.00019178,2]
[403905350,1769652645154,-846.9173,0.00019178,2]
[403905351,1769652645164,-169.4,0.00019178,2]
[403905352,1769652645175,-508.15,0.00019178,2]
[403905353,1769652645187,-370.08,0.00019178,2]
[403905354,1769652645199,-241.876483,0.00019178,2]
[403905355,1769652645209,-241.876483,0.00019178,2]
[403905356,1769652645221,-241.876483,0.00019178,2]
[403905357,1769652645231,-241.876486,0.00019178,2]
[403905358,1769652645242,-1270.376,0.00019178,2]
[403905359,1769652645252,-479.227463,0.00019178,2]
[403905360,1769652645263,-479.227463,0.00019178,2]
[403905361,1769652645273,-479.227463,0.00019178,2]
[403905362,1769652645283,-479.227463,0.00019178,2]
[403905363,1769652645293,-729.62,0.00019178,2]
[403905364,1769652645304,-151.0,0.00019178,2]
[403905365,1769652645322,-151.0,0.00019178,2]
[403905366,1769652645335,-151.0,0.00019178,2]
[403905367,1769652645345,-151.0,0.00019178,2]
[403905368,1769652645355,-151.0,0.00019178,2]
[403905369,1769652645366,-151.0,0.00019178,2]
[403905370,1769652645376,-151.0,0.00019178,2]
[403905371,1769652645387,-151.0,0.00019178,2]
[403905372,1769652645397,-151.0,0.00019178,2]
[403905373,1769652645407,-151.0,0.00019178,2]
[403905374,1769652645418,-151.0,0.00019178,2]
[403905375,1769652645428,-151.0,0.00019178,2]
[403905376,1769652645438,-151.0,0.00019178,2]
[403905377,1769652645449,-151.0,0.00019178,2]
[403905378,1769652645459,-151.0,0.00019178,2]
[403905379,1769652645470,-151.0,0.00019178,2]
[403905380,1769652645480,-151.0,0.00019178,2]
[403905381,1769652645491,-151.0,0.00019178,2]
[403905382,1769652645501,-215.404676,0.00019178,2]
[403905383,1769652645512,-1665.86,0.000192,2]
[403905384,1769652645522,-303.10001603,0.00019278,2]
[403905385,1769652645532,-151.0,0.00019388,2]
[403905386,1769652645542,-617.40005154,0.00019389,2]
[403905387,1769652645552,-488.3779537,0.00019459,2]
[403905388,1769652645562,-303.10001603,0.00019467,2]
[403905389,1769652645573,-255.417628,0.00019589,2]
[403905390,1769652645584,-255.417628,0.00019589,2]
[403905391,1769652645594,-255.417628,0.00019589,2]
[403905392,1769652645604,-255.41762519,0.00019589,2]
[403905393,1769652645615,-151.0,0.00019589,2]
[403905394,1769652645624,-151.0,0.00019589,2]